Cogmind - Beta 12 @@@ ROGUE MODE // 2023.11.19 @ 20:19:39 Player: kaj Result: Destroyed by G-34 Mercenary with Small Laser Performance ------------- Evolutions (0) 0 Regions Visited (1) 200 Robots Destroyed (6) 30 Value Destroyed (93) 93 Prototype IDs (0) 0 Alien Tech Used (0) 0 Bonus (0) 0 TOTAL SCORE: 323 Bonus ------- None Cogmind --------- Core Integrity 0/250 Matter 191/300 Energy 75/100 System Corruption 0% Temperature Danger (447) Movement Core (1400) Ox27 Location -10/Materials Parts ------- > --- POWER (1) -------- (None) > --- PROPULSION (2) --- Compact Wheel > --- UTILITY (2) ------ Improved Heat Sink Huge Storage Unit > --- WEAPON (2) ------- Light Assault Rifle > --- INVENTORY (25) --- Light Ion Engine Light Treads Light Treads Wheel Wheel Compact Wheel Huge Storage Unit Sensor Array Utility Shielding EM Pulse Gun Small Laser Peak State ------------ > --- POWER ------------ (None) > --- PROPULSION ------- Wheel Compact Wheel > --- UTILITY ---------- Improved Heat Sink Huge Storage Unit > --- WEAPON ----------- Particle Gun Light Assault Rifle > --- INVENTORY -------- Light Ion Engine Light Treads Light Treads Wheel Compact Wheel Huge Storage Unit Sensor Array Utility Shielding EM Pulse Gun Small Laser [Rating: 10] Favorites ----------- Power Ion Engine Engine Ion Engine Propulsion Wheel Treads Light Treads Leg Aluminum Leg Wheel Wheel Utility Huge Storage Unit Device Seismic Detector Storage Huge Storage Unit Weapon Medium Laser Energy Gun Medium Laser Ballistic Gun Light Assault Rifle Build | -11 -10 ------- Run | Jun Mat Slots Evolved . | . . Power . | . . Propulsion . | . . Utility . | . . Weapon . | . . Parts Attached 9 | 1 8 Power . | . . Engine . | . . Core . | . . Reactor . | . . Propulsion 3 | . 3 Treads 1 | . 1 Leg . | . . Wheel 2 | . 2 Hover . | . . Flight . | . . Utility 3 | . 3 Device 2 | . 2 Storage 1 | . 1 Processor . | . . Hackware . | . . Protection . | . . Artifact . | . . Weapon 3 | 1 2 Energy Gun 2 | 1 1 Energy Cannon . | . . Ballistic Gun 1 | . 1 Ballistic Cannon . | . . Launcher . | . . Special Weapon . | . . Impact Weapon . | . . Slashing Weapon . | . . Piercing Weapon . | . . Special Melee Weapon . | . . Unidentified Prototypes . | . . Parts Lost 5 | . 5 Power 1 | . 1 Propulsion 1 | . 1 Utility 1 | . 1 Weapon 2 | . 2 Highest Loss Streak 5 | . 5 To Critical Strikes . | . . Average Slot Usage (%) 92 | . 92 Engine 13 | . 13 Leg 6 | . 6 Wheel 21 | . 21 Device 8 | . 8 Storage 14 | . 14 Energy Gun 27 | . 27 Naked Turns . | . . Heaviest Build 91 | 13 91 Greatest Support 26 | 20 26 Greatest Overweight (x) 8 | . 8 Average Overweight (x) 1 | . 1 Largest Inventory Capacity 25 | 8 25 Average Capacity 20 | 8 20 Most Carried 11 | 6 11 Average Carried 8 | 6 8 Final Capacity 25 | 8 25 Final Carried 11 | 6 11 Class Distribution -------------------- 100% | Mutant Dominant Class ---------------- Mutant | -10/Materials Resources | -11 -10 ----------- Run | Jun Mat Matter Collected 260 | 203 57 Remotely . | . . Salvage Created 141 | . 141 Parts 11 | . 11 Haulers Intercepted . | . . Recyclers Shooed 1 | . 1 Parts Field Recycled . | . . Retrieved Matter . | . . Parts Self-Destructed . | . . Prevented . | . . Kills | -11 -10 ------- Run | Jun Mat Combat Hostiles Destroyed 4 | . 4 Guns 4 | . 4 Classes Destroyed 4 | . 4 Worker 1 | . 1 Builder 1 | . 1 Swarmer 3 | . 3 Grunt 1 | . 1 Best Kill Streak 5 | . 5 Combat Bots Only 2 | . 2 Max Kills in Single Turn 1 | . 1 Gunslinging . | . . Exploded . | . . Melee . | . . Uniques/NPCs Destroyed . | . . Combat | -11 -10 -------- Run | Jun Mat Damage Taken 532 | . 532 Core 259 | . 259 Absorbed by Shields . | . . Core Remaining (%) 100 | 100 . Volleys Fired 23 | . 23 Largest 2 | . 2 Hottest 115 | . 115 Shots Fired 45 | . 45 Gun 45 | . 45 Cannon . | . . Launcher . | . . Special . | . . Kinetic 1 | . 1 Thermal 44 | . 44 Explosive . | . . Electromagnetic . | . . Robot Hit Streak 4 | . 4 Robot Miss Streak 6 | . 6 Penetration Max . | . . Secondary Targets 1 | . 1 Max Gunslinging Chain 1 | . 1 Shots Hit Robots 14 | . 14 Core Hits 9 | . 9 Critical Kills . | . . Critical Parts Destroyed . | . . Critical Strikes 1 | . 1 Burn 1 | . 1 Melee Attacks . | . . Impact . | . . Slashing . | . . Piercing . | . . Sneak Attacks . | . . Combat Hostiles . | . . Follow-up Attacks . | . . Damage Inflicted 247 | . 247 Guns 247 | . 247 Cannons . | . . Explosions . | . . Melee . | . . Ramming . | . . Kinetic 9 | . 9 Thermal 238 | . 238 Explosive . | . . Electromagnetic . | . . Impact . | . . Slashing . | . . Piercing . | . . Highest Corruption . | . . Average Corruption . | . . Corruption Purged . | . . Corruption Blocked . | . . Overload Shots . | . . Overflow Damage . | . . Projectiles . | . . Explosions . | . . Melee . | . . Knockbacks . | . . Impact . | . . Kinetic . | . . Secondary . | . . Self-Inflicted Damage . | . . Shots . | . . Rammed . | . . Targets Rammed . | . . Kicked . | . . Crushed . | . . Highest Temperature 772 | . 772 Average Temperature 332 | . 332 Received Heat Transfer 150 | . 150 Effects 15 | . 15 Shutdowns 3 | . 3 Energy Bleed 2 | . 2 Matter Decay 3 | . 3 Short Circuit 1 | . 1 Damage (minor) 1 | . 1 Damage (major) 3 | . 3 Damage (core) 2 | . 2 Siege Activations . | . . Robots Corrupted . | . . Combat Hostiles . | . . Parts Fried . | . . Impact Corruptions . | . . Robots Melted . | . . Combat Hostiles . | . . Parts Melted . | . . Heat Transferred 704 | . 704 Parts Sabotaged . | . . Parts Stolen . | . . Parts Stripped . | . . Power Chain Reactions . | . . Missiles Intercepted . | . . Alert | -11 -10 ------- Run | Jun Mat Peak Influence 154 | . 154 Initial . | . . Average 37 | . 38 Maximum Alert Level . | . . Low Security (%) 100 | 100 100 Level 1 . | . . Level 2 . | . . Level 3 . | . . Level 4 . | . . Level 5 . | . . High Security . | . . Max Security . | . . Squads Dispatched 2 | . 2 Investigation 1 | . 1 Extermination . | . . Reinforcement 1 | . 1 Assault . | . . Garrison . | . . Intercept . | . . Searches Triggered . | . . Construction Impeded . | . . Haulers Reinforced . | . . Active Scanning Responses . | . . Cargo Convoy Interrupts . | . . Stealth | -11 -10 --------- Run | Jun Mat Distress Signals 1 | . 1 Communications Jammed . | . . Distress Signals . | . . Times Spotted 10 | . 10 Peak Tracking Total 6 | . 6 Tactical Retreats 1 | . 1 Traps | -11 -10 ------- Run | Jun Mat Traps Triggered . | . . Indirectly . | . . Trap Hack Attempts . | . . Triggered . | . . Disarmed . | . . Reprogrammed . | . . Reused . | . . Traps Extracted . | . . Installed . | . . Triggered . | . . Machines | -11 -10 ---------- Run | Jun Mat Machines Disabled 1 | . 1 Max in Single Turn 1 | . 1 Machines Repaired . | . . Machines Sabotaged . | . . Overloaded Fab Kills . | . . Hacking | -11 -10 --------- Run | Jun Mat Machines Accessed 3 | . 3 Terminals 2 | . 2 Fabricators . | . . Repair Stations . | . . Recycling Units 1 | . 1 Scanalyzers . | . . Garrison Access . | . . Total Hacks 10 | . 10 Successful 3 | . 3 Failed 7 | . 7 Catastrophic . | . . Database Lockouts . | . . Manual 8 | . 8 Terminals 6 | . 6 Fabricators . | . . Repair Stations . | . . Recycling Units 4 | . 4 Scanalyzers . | . . Garrison Access . | . . Terminal Hacks 1 | . 1 Zone Layout 1 | . 1 Fabricator Hacks . | . . Repair Station Hacks . | . . Recycling Unit Hacks . | . . Scanalyzer . | . . Garrison Access Hacks . | . . Unauthorized Hacks 2 | . 2 Terminals . | . . Fabricators . | . . Repair Stations . | . . Recycling Units 2 | . 2 Monitor 1 | . 1 Mask 1 | . 1 Scanalyzers . | . . Garrison Access . | . . Data Cores Recovered . | . . Used . | . . Hacking Detections 3 | . 3 Full Trace Events 1 | . 1 Feedback Events . | . . Feedback Blocked . | . . Robot Schematics Acquired . | . . Robots Built . | . . Authchips . | . . Time . | . . Total Robot Build Rating . | . . Part Schematics Acquired . | . . Parts Built . | . . Authchips . | . . Time . | . . Total Part Build Rating . | . . Parts Repaired . | . . Time . | . . Parts Recycled . | . . Recycled Matter . | . . Retrieved Matter . | . . Retrieved Components . | . . Parts Scanalyzed . | . . Part Schematics Acquired . | . . Parts Damaged . | . . Bothacking | -11 -10 ------------ Run | Jun Mat Used RIF Installer . | . . Robots Hacked . | . . Non-combat . | . . Combat . | . . Robot Hacks Applied . | . . Relay Couplers Released . | . . Fabnet Peak Effective % . | . . Robots Rewired . | . . Allies Hacked . | . . Hacks Repelled . | . . Allies | -11 -10 -------- Run | Jun Mat Total Allies . | . . Largest Group . | . . Highest-Rated Group . | . . Highest-Rated Ally . | . . Total Orders . | . . Ally Attacks . | . . Total Damage . | . . Kills . | . . Allies Corrupted . | . . Allies Melted . | . . Intel | -11 -10 ------- Run | Jun Mat Robot Analysis Total . | . . Derelict Logs Recovered . | . . Drone Launches . | . . Drone Recoveries . | . . Exploration | -11 -10 ------------- Run | Jun Mat Turns Passed 291 | 4 287 Spaces Moved 124 | 3 121 Core . | . . Treads . | . . Legs 55 | 3 52 Wheels 69 | . 69 Hover . | . . Flight . | . . Fastest Speed 95 | 120 95 Average Speed 127 | 120 128 Slowest Speed 200 | 120 200 Overloaded Moves . | . . Propulsion Burnouts . | . . Robots Hopped . | . . Cave-ins Triggered . | . . Exploration Rate (%) 14 | 2 27 Regions Visited 1 Branch Regions . Pre-discovered Areas . | . . Known Exits Taken . | . . Unknown Exits Taken 1 | 1 . Scrap Searched . | . . Spaces Dug . | . . Terrain Destroyed . | . . Melee . | . . Projectile . | . . AOE . | . . Terrain Rammed . | . . Walls Destroyed . | . . Machines Disabled . | . . Actions | -11 -10 --------- Run | Jun Mat Total 211 | 3 208 Wait 43 | . 43 Move 123 | 2 121 Hop . | . . Pick Up 10 | . 10 Fast Attach 1 | . 1 Attach 5 | . 5 Detach . | . . Swap 3 | 1 2 Drop 3 | . 3 Fire 23 | . 23 Melee . | . . Ram . | . . Kick . | . . Crush . | . . Escape Stasis . | . . Rewire . | . . Trap . | . . Miscellaneous . | . . Route ------- -11/Junkyard -10/Materials History --------- Turn | Location | Event 3 | -11/Junkyard | Discovered new exit (range 1) 5 | -11/Junkyard | Entered Materials 267 | -10/Materials | Core integrity fell below 50% 282 | -10/Materials | Core integrity fell below 20% 292 | -10/Materials | Destroyed by G-34 Mercenary with Small Laser Last Messages --------------- 00268_ R-06 Scavenger collects Flight Unit. 00270_ Overheating: Matter decay (-44). 00270_ S-10 Pest destroyed. 00272_ Overheating: Particle Gun damaged (-20). 00272_ Overheating: Ion Engine damaged (-15). 00272_ Overheating: Med. Laser damaged (-6). 00273_ Overheating: Ion Engine damaged (-4). 00275_ Power failure, Ion Engine shutdown. 00276_ Ion Engine destroyed. 00277_ Overheating: Matter decay (-28). 00282_ Acquired Lgt. Assault Rifle. 00282_ Med. Laser destroyed. 00285_ Com. Wheel broken. 00285_ Overheating: Short circuit. 00288_ Acquired Wheel. 00289_ Overheating: Matter decay (-31). 00289_ Particle Gun destroyed. 00291_ Wheel destroyed. 00291_ Acquired Wheel. 00292_ Overheating: Energy bleed (-20). Map ----- +----------------------------------------------------+ | ?????????????????????????????????" #?????# #"" | | ????????????????????????????????? ##????# + | | ????????????????????????????????? #????# # | | ????????????????????????????????? #????# # | | ????????????????????????????????? #????# # | | ?????????????????????????????????#+######?# #### | | ?????????????????????????????????# #?# #??? | | ?????????????????????????????????# #?# #??? | | ?????????????????????????????????# """ #?# #??? | | ?????????????????????????????????# """ #?# #??? | | ?????????????????????????????????# """ #?### #??? | | ?????????????????????????????????# #???# #??? | | ?????????????????????????????????########???# #??? | | ?????????????????????????????????#??????????# #### | | ?????????????????????????????????############ | | ??????????????????????????????????# T | | ?????????????????#????????????????# "" | | ?????????????????# ???????????????# | | ?????????????????? ???????????????# ####### | | ??????????????????# ??????????????# #########+## | | ??????????????????# ?????????????# ## # | | ??????????????????# ????????????## ## # | | ??????????????????# ???????????# # """ """ # | | ?????????????????## #??????????# # """ """ # | | ??????????######## ########### + """ """ # | | ????????? =%=@ g t g % # # | | ????????? !u g###### # # | | ????????? % #????## ## # | | ??????????" """ """ #?????# ############ | | ???????????????"""" #?????# #??????????? | | ??????????????? """" #?????+ #??????????? | | ??????????????? * #?????# #??????????? | | ????????????? % %[ #?????# #??????????? | | ????????????#### ### ######?????# #??????????? | | ???????????????#???# ???????????# #??????????? | | ???????????????????# ???????????# ??????????? | | ???????????????????# ???????????# #??????????? | | ???????????????????# ????????????# #??????????? | | ??????????????????? ?????????????? #??????????? | | ??????????????????# ????????????????#??????????? | | ??????????????????+ T???????????????????????????? | | ??????????????????#? ????????????????????????????? | | ?????????????????????????????????????????????????? | | ?????????????????????????????????????????????????? | | ?????????????????????????????????????????????????? | | ?????????????????????????????????????????????????? | | ?????????????????????????????????????????????????? | | ?????????????????????????????????????????????????? | | ?????????????????????????????????????????????????? | | ?????????????????????????????????????????????????? | +----------------------------------------------------+ Best States ------------- Heat Dissipation 39 Energy Generation 10 Energy Capacity 250 Matter Stores 300 Matter Capacity 300 Sight Range 16 Terrain Scan Density 10 Evasion (%) 55 Item Schematics ----------------- None Robot Schematics ------------------ None Fabricated ------------ Nothing Alien Tech Used ----------------- None Achievements -------------- None Challenges ------------ None Game ------ Seed AntimissileReflectiveAxe Manual? 0 Play Time 00:04:02 Cumulative 148.5 hours Start 2023.11.19 @ 20:15:49 End 2023.11.19 @ 20:19:39 Sessions 1 Manual Loads 0 Difficulty Rogue Special Mode None Game No. 227 Rogue 227 Adventurer 0 Explorer 0 Win Type - Total 0 Types 0/0/0/0/0/0/0/0/0 Lore% 49 Gallery% 58 Achievement% 43 Wizard Run 0 Options --------- ASCII 0 Keyboard 0 Movement Numpad Keybinds 1 Fullscreen 2 Font 18/X11 Map View 76x50 Tactical HUD 1 Map Filters SATURATION(75) Filters LOW_CONTRAST(23,23,23) Steam 1 RUN: 559f58fd-64de-4e1c-add7-762cb92b69e9